fUSD/lending_fUSD_20260115
["ID","MTS","AMOUNT","RATE_DAILY","PERIOD"]
[402074501,1768507883595,-1000.0,0.00036164,120]
[402074502,1768507883605,-1000.0,0.00036164,120]
[402074503,1768507883615,-1000.0,0.00036164,120]
[402074504,1768507883625,-500.0,0.00036164,10]
[402074505,1768507883634,-500.0,0.00036164,10]
[402074506,1768507883644,-1280.23,0.00036164,10]
[402074507,1768507883654,-500.0,0.00036164,10]
[402074508,1768507883663,-500.0,0.00036164,10]
[402074509,1768507883673,-669.6,0.00036164,10]
[402074510,1768507883683,-500.0,0.00036164,10]
[402074511,1768507883692,-760.23,0.00036164,10]
[402074512,1768507883702,-535.72,0.00036164,10]
[402074513,1768507883711,-443.39937661,0.00036164,10]
[402074514,1768507883721,-500.0,0.00036164,10]
[402074515,1768507883730,-1406.24245517,0.00036164,10]
[402074516,1768507883743,-710.02754483,0.00036164,10]
[402074517,1768507883752,-868.65,0.00036164,10]
[402074518,1768507883760,-1283.87,0.00036164,10]
[402074519,1768507883770,-500.0,0.00036164,10]
[402074520,1768507883780,-500.0,0.00036164,10]
[402074521,1768507883791,-798.61,0.00036164,10]
[402074522,1768507883800,-500.0,0.00036164,10]
[402074523,1768507883810,-519.47733112,0.00036164,10]
[402074524,1768507883820,-1998.88306,0.00036164,75]
[402074525,1768507883830,-608.54,0.00036164,10]
[402074526,1768507883840,-1998.88306,0.00036164,75]
[402074527,1768507883849,-1998.88307,0.00036164,75]
[402074528,1768507883859,-1998.88307,0.00036164,75]
[402074529,1768507883869,-1998.88307,0.00036164,75]
[402074530,1768507883880,-500.0,0.00036164,10]
[402074531,1768507883890,-1998.88307,0.00036164,75]
[402074532,1768507883900,-500.0,0.00036164,10]
[402074533,1768507883910,-750.23,0.00036164,10]
[402074534,1768507883920,-1305.82,0.00036164,10]
[402074535,1768507883931,-500.0,0.00036164,10]
[402074536,1768507883941,-500.0,0.00036164,10]
[402074537,1768507883952,-696.57,0.00036164,10]
[402074538,1768507883963,-500.0,0.00036164,10]
[402074539,1768507883973,-500.0,0.00036164,10]
[402074540,1768507883984,-500.0,0.00036164,10]
[402074541,1768507883994,-500.0,0.00036164,10]
[402074542,1768507884004,-744.45,0.00036164,10]
[402074543,1768507884014,-500.0,0.00036164,10]
[402074544,1768507884023,-642.55151669,0.00036164,10]
[402074545,1768507884034,-3344.16,0.00036164,10]
[402074546,1768507884044,-500.0,0.00036164,10]
[402074547,1768507884055,-500.0,0.00036164,10]
[402074548,1768507884065,-500.0,0.00036164,10]
[402074549,1768507884075,-500.0,0.00036164,10]
[402074550,1768507884086,-1522.18,0.00036164,10]
[402074551,1768507884099,-500.0,0.00036164,10]
[402074552,1768507884109,-500.0,0.00036164,10]
[402074553,1768507884119,-500.0,0.00036164,10]
[402074554,1768507884130,-600.0,0.00036164,2]
[402074555,1768507884140,-71.56520786,0.000364,14]
[402074556,1768507884152,-78.43479214,0.000364,14]
[402074557,1768507884162,-187.88,0.000364,34]
[402074558,1768507884174,-11763.98096525,0.00036403,10]
[402074559,1768507884186,-253.13099999,0.00036403,10]
[402074560,1768507884198,-1190.19780349,0.00036403,10]
[402074561,1768507884210,-11792.69023127,0.00036403,10]
[402074562,1768507884221,-154.88796595,0.00036412,10]
[402074563,1768507884245,-1136.92,0.00036164,10]
[402074564,1768507884256,-24845.11203405,0.00036412,10]
[402074565,1768507884265,-6545.82360864,0.0003642,10]
[402074566,1768507885923,10000.01,0.00016662,2]
[402074567,1768507885951,10000.01,0.00016662,2]
[402074568,1768507885980,10000.01,0.00016662,2]
[402074569,1768507886008,10000.01,0.00016662,2]
[402074570,1768507886034,10000.01,0.00016662,2]
[402074571,1768507886060,10000.01,0.00016662,2]
[402074572,1768507886084,10000.01,0.00016662,2]
[402074573,1768507886112,10000.01,0.00016662,2]
[402074574,1768507886140,10000.01,0.00016662,2]
[402074575,1768507886166,10000.01,0.00016662,2]
[402074576,1768507887913,300.0,0.00016661,2]
[402074577,1768507894993,260.518,0.00016329,2]
[402074578,1768507895031,183.77122864,0.00016329,2]
[402074579,1768507909565,189.0,0.0003013,120]
[402074580,1768507910363,1929.0,0.0003013,120]
[402074581,1768507911182,455.0,0.0003013,120]
[402074582,1768507911985,1047.0,0.0003013,120]
[402074583,1768507922468,433.0,0.00016661,2]
[402074584,1768507935140,500.0,0.00016661,2]
[402074585,1768507935191,500.0,0.00016661,2]
[402074594,1768507955404,1142.53177309,0.00016661,2]
[402074595,1768507970227,1189.0,0.0003013,120]
[402074596,1768507971043,647.0,0.0003013,120]
[402074597,1768507985915,6980.18899827,0.00016562,2]
[402074598,1768507985939,10000.01,0.00016562,2]
[402074599,1768507985962,8382.53910173,0.00016562,2]
[402074600,1768507991669,228.41198584,0.00016563,2]
[402074601,1768507992086,1389.05891243,0.00016562,2]
[402074602,1768507992108,4433.59738757,0.00016562,2]
[402074610,1768508034327,814.0,0.0003013,120]
[402074611,1768508035115,1265.01134139,0.0003013,120]
[402074612,1768508041835,10000.01,0.00016562,2]
[402074613,1768508041859,1955.00948245,0.00016562,2]
[402074614,1768508056366,599.11285496,0.00016562,2]
[402074615,1768508063230,1600.0,0.00025649,120]
[402074618,1768508101162,1200.0,0.00016661,2]
[402074619,1768508102359,300.0,0.00016661,2]
[402074620,1768508103853,550.0,0.00016661,2]
[402074621,1768508137914,5395.88766259,0.00016562,2]
[402074622,1768508137943,10000.01,0.00016562,2]
[402074623,1768508137972,10000.01,0.00016562,2]
[402074624,1768508138002,611.39440687,0.00016562,2]
[402074625,1768508161954,2036.182952,0.00016578,2]
[402074626,1768508186082,7963.827048,0.00016652,2]
[402074627,1768508186104,9701.13042991,0.00016652,2]
[402074628,1768508187911,298.87957009,0.00016661,2]
[402074629,1768508187934,201.12042991,0.00016661,2]
[402074630,1768508205155,754.0,0.00029987,120]
[402074632,1768508231529,500.0,0.00016661,2]
[402074633,1768508231677,500.0,0.00016661,2]
[402074634,1768508231909,500.0,0.00016661,2]
[402074635,1768508259158,5208.97,0.00013814,2]
[402074636,1768508266390,150.0,0.00016486,2]
[402074637,1768508273190,500.0,0.00016661,2]
[402074638,1768508281331,300.0,0.00016661,2]
[402074639,1768508282385,550.0,0.00016661,2]
[402074640,1768508338368,558.94944608,0.00016562,2]
[402074641,1768508341221,300.0,0.00016661,2]
[402074642,1768508401236,932.09055392,0.00016661,2]
[402074643,1768508401263,267.90944608,0.00016661,2]
[402074644,1768508408824,9732.10055392,7.945e-05,2]
[402074645,1768508408848,1424.08491708,7.945e-05,2]
[402074646,1768508419241,7761.7458,0.00016562,2]
[402074647,1768508423480,814.17928292,8.274e-05,2]
[402074648,1768508423505,296.48071708,8.274e-05,2]
[402074649,1768508423692,1110.66,8.709e-05,2]
[402074650,1768508424302,1110.66,9.145e-05,2]
[402074651,1768508424358,1110.66,9.58e-05,2]
[402074652,1768508424510,1110.66,0.00010016,2]
[402074653,1768508424565,1110.66,0.00010451,2]
[402074654,1768508424934,1110.66,0.00010886,2]
[402074655,1768508425136,1110.66,0.00011322,2]
[402074656,1768508425534,1110.66,0.00011757,2]
[402074657,1768508425743,818.24928292,0.00012193,2]
[402074658,1768508425768,292.41071708,0.00012193,2]
[402074659,1768508426166,1110.66,0.00012628,2]
[402074660,1768508426463,1110.66,0.00013064,2]
[402074661,1768508426670,1110.66,0.00013499,2]
[402074662,1768508426899,1110.66,0.00013935,2]
[402074663,1768508427129,1110.66,0.0001437,2]
[402074664,1768508427583,1110.66,0.00014806,2]
[402074665,1768508427649,1110.66,0.00015241,2]
[402074666,1768508427806,1110.66,0.00015676,2]
[402074667,1768508428073,1110.66,0.00016112,2]
[402074668,1768508428301,1110.66,0.00016547,2]
[402074669,1768508442193,4.07,0.00016562,2]
[402074670,1768508442230,409.92476632,0.00016562,2]
[402074671,1768508443252,-551.92423901,0.00016662,2]
[402074672,1768508461933,550.0,0.00016661,2]
[402074673,1768508468454,4002.505237,7.945e-05,2]
[402074674,1768508481300,-202.89980045,0.00016662,2]
[402074675,1768508483061,3003.1681,0.00016562,2]
[402074676,1768508483534,410.88437,0.00016578,2]
[402074677,1768508484068,-154.72105488,0.00016662,2]
[402074678,1768508486775,-200.22499774,0.00016662,2]
[402074679,1768508489266,1623.52752668,0.00016562,2]
[402074680,1768508489288,876.47247332,0.00016562,2]
[402074681,1768508489963,-414.13483868,0.00016662,2]
[402074682,1768508492666,-264.33267322,0.00016662,2]
[402074683,1768508494202,1208.312,0.00016329,2]
[402074684,1768508494756,-400.91796203,0.00016662,2]
[402074685,1768508498686,-195.0,0.00016662,2]
[402074686,1768508524553,7915.22552668,0.00016562,2]
[402074687,1768508525900,-239.3552419,0.00016562,2]
[402074688,1768508529103,-300.0,0.00016562,2]
[402074689,1768508533710,-367.28669584,0.00016562,2]
[402074690,1768508535897,-206.9126802,0.00016562,2]
[402074691,1768508537898,-259.03159536,0.00016562,2]
[402074692,1768508540753,-322.97458823,0.00016562,2]
[402074693,1768508543306,-273.6419998,0.00016562,2]
[402074694,1768508546409,-236.09671613,0.00016562,2]
[402074695,1768508549193,-5674.91625899,0.00016562,2]
[402074696,1768508549321,-1265.59218874,0.00016562,2]
[402074697,1768508549351,-7468.82562252,0.00016562,2]
[402074698,1768508549920,-486.47409497,0.00016662,2]
[402074699,1768508553443,-242.95328387,0.00016662,2]
[402074700,1768508555315,10000.01,0.00016562,2]
[402074701,1768508555340,1091.61000042,0.00016562,2]
[402074702,1768508557641,-162.0570813,0.00016662,2]
[402074703,1768508562929,-338.39666657,0.00016662,2]
[402074704,1768508564558,-213.41401757,0.00016662,2]
[402074705,1768508567820,-179.07901585,0.00016662,2]
[402074706,1768508571292,-399.32792084,0.00016662,2]
[402074707,1768508572837,3389.5631,0.00016562,2]
[402074708,1768508573625,6610.4469,0.00016526,2]
[402074709,1768508573647,10000.01,0.00016526,2]
[402074710,1768508573669,10000.01,0.00016526,2]
[402074711,1768508573691,6463.9831,0.00016526,2]
[402074712,1768508575811,-229.92687234,0.00016662,2]
[402074713,1768508579923,-151.0252419,0.00016662,2]
[402074714,1768508581487,300.6515313,0.000166,2]
[402074715,1768508582581,-169.04788576,0.00016662,2]
[402074716,1768508585464,-202.0252419,0.00016662,2]
[402074717,1768508588219,-164.83561343,0.00016662,2]
[402074718,1768508626481,519.46575107,0.00016562,2]
[402074719,1768508627022,276.38,0.000166,2]
[402074720,1768508643012,332.9414,0.00016562,2]
[402074721,1768508651602,200.82,0.00030137,120]
[402074722,1768508705727,-195.03984145,0.0001666,2]
[402074723,1768508708717,-300.0,0.0001666,2]
[402074724,1768508730459,-704.96015855,0.0001666,2]
[402074725,1768508730491,-500.0,0.00016661,2]
[402074726,1768508730519,-550.0,0.00016661,2]
[402074727,1768508730549,-500.0,0.00016661,2]
[402074728,1768508730578,-500.0,0.00016661,2]
[402074729,1768508730607,-500.0,0.00016661,2]
[402074730,1768508730638,-582.07232141,0.00016661,2]
[402074731,1768508730668,-500.0,0.00016661,2]
[402074732,1768508730704,-500.0,0.00016661,2]
[402074733,1768508730868,-392.27761944,0.00016661,2]
[402074734,1768508730901,-500.0,0.00016661,2]
[402074735,1768508730936,-500.0,0.00016661,2]
[402074736,1768508730967,-500.0,0.00016661,2]
[402074737,1768508730999,-471.69781871,0.00016661,2]
[402074738,1768508731036,-445.4540977,0.00016661,2]
[402074739,1768508731071,-668.5930817,0.00016661,2]
[402074740,1768508731104,-668.5930817,0.00016661,2]
[402074741,1768508731134,-500.0,0.00016661,2]
[402074742,1768508731168,-38.1855198,0.00016661,2]
[402074743,1768508731294,-630.4075619,0.00016661,2]
[402074744,1768508731338,-500.0,0.00016661,2]
[402074745,1768508731373,-668.5930817,0.00016661,2]
[402074746,1768508731408,-500.0,0.00016661,2]
[402074747,1768508731441,-668.5930817,0.00016661,2]
[402074748,1768508731477,-668.5930817,0.00016661,2]
[402074749,1768508731507,-500.0,0.00016661,2]
[402074750,1768508731538,-668.5930817,0.00016661,2]
[402074751,1768508731702,-500.0,0.00016661,2]
[402074752,1768508731733,-500.0,0.00016661,2]
[402074753,1768508731766,-668.5930817,0.00016661,2]
[402074754,1768508731798,-668.5930817,0.00016661,2]
[402074755,1768508731831,-668.5930817,0.00016661,2]
[402074756,1768508731863,-500.0,0.00016661,2]
[402074757,1768508731897,-668.5930817,0.00016661,2]
[402074758,1768508731929,-500.0,0.00016661,2]
[402074759,1768508732149,-668.5930817,0.00016661,2]
[402074760,1768508732183,-668.5930817,0.00016661,2]
[402074761,1768508732215,-500.0,0.00016661,2]
[402074762,1768508732247,-668.5930817,0.00016661,2]
[402074763,1768508732279,-154.51025651,0.00016661,2]
[402074764,1768508732313,-668.5930817,0.00016661,2]
[402074765,1768508732344,-500.0,0.00016661,2]
[402074766,1768508732378,-668.5930817,0.00016661,2]
[402074767,1768508732409,-500.0,0.00016661,2]
[402074768,1768508732540,-668.5930817,0.00016661,2]
[402074769,1768508732600,-668.5930817,0.00016661,2]
[402074770,1768508732650,-500.0,0.00016661,2]
[402074771,1768508732704,-668.5930817,0.00016661,2]
[402074772,1768508732757,-668.5930817,0.00016661,2]
[402074773,1768508732808,-668.5930817,0.00016661,2]
[402074774,1768508732864,-668.5930817,0.00016661,2]
[402074775,1768508732912,-308.2999379,0.00016661,2]
[402074776,1768508733149,-360.2931438,0.00016661,2]
[402074777,1768508733196,-668.5930817,0.00016661,2]
[402074778,1768508733244,-668.5930817,0.00016661,2]
[402074779,1768508733291,-668.5930817,0.00016661,2]
[402074780,1768508733339,-668.5930817,0.00016661,2]
[402074781,1768508733386,-668.5930817,0.00016661,2]
[402074782,1768508733431,-668.5930817,0.00016661,2]
[402074783,1768508733476,-587.7136503,0.00016661,2]
[402074784,1768508733747,-80.8794314,0.00016661,2]
[402074785,1768508733794,-668.5930817,0.00016661,2]
[402074786,1768508733841,-668.5930817,0.00016661,2]
[402074787,1768508733887,-668.5930817,0.00016661,2]
[402074788,1768508733933,-668.5930817,0.00016661,2]
[402074789,1768508733978,-668.5930817,0.00016661,2]
[402074790,1768508734029,-668.5930817,0.00016661,2]
[402074791,1768508734073,-500.0,0.00016661,2]
[402074792,1768508734120,-146.5410751,0.00016661,2]
[402074793,1768508737264,-522.0520066,0.00016661,2]
[402074794,1768508737297,-668.5930817,0.00016661,2]
[402074795,1768508737333,-668.5930817,0.00016661,2]
[402074796,1768508737366,-668.5930817,0.00016661,2]
[402074797,1768508737399,-668.5930817,0.00016661,2]
[402074798,1768508737430,-668.5930817,0.00016661,2]
[402074799,1768508737462,-668.5930817,0.00016661,2]
[402074800,1768508737495,-264.1959247,0.00016661,2]
[402074801,1768508737566,-404.397157,0.00016661,2]
[402074802,1768508737599,-668.5930817,0.00016661,2]
[402074803,1768508737632,-668.5930817,0.00016661,2]
[402074804,1768508737664,-668.5930817,0.00016661,2]
[402074805,1768508737696,-668.5930817,0.00016661,2]
[402074806,1768508737732,-668.5930817,0.00016661,2]
[402074807,1768508737763,-668.5930817,0.00016661,2]
[402074808,1768508737795,-499.5056239,0.00016661,2]
[402074809,1768508737969,-169.0874578,0.00016661,2]
[402074810,1768508738002,-668.5930817,0.00016661,2]
[402074811,1768508738034,-668.5930817,0.00016661,2]
[402074812,1768508738068,-668.5930817,0.00016661,2]
[402074813,1768508738101,-668.5930817,0.00016661,2]
[402074814,1768508738135,-668.5930817,0.00016661,2]
[402074815,1768508738169,-668.5930817,0.00016661,2]
[402074816,1768508738205,-668.8583964,0.00016661,2]
[402074817,1768508739806,-668.8583964,0.00016661,2]
[402074818,1768508739837,-668.8583964,0.00016661,2]
[402074819,1768508739868,-668.8583964,0.00016661,2]
[402074820,1768508739900,-668.8583964,0.00016661,2]
[402074821,1768508739932,-668.8583964,0.00016661,2]
[402074822,1768508739966,-668.8583964,0.00016661,2]
[402074823,1768508739996,-668.8583964,0.00016661,2]
[402074824,1768508740058,-668.8583964,0.00016661,2]
[402074825,1768508740090,-668.8583964,0.00016661,2]
[402074826,1768508740124,-668.8583964,0.00016661,2]
[402074827,1768508740157,-668.8583964,0.00016661,2]
[402074828,1768508740188,-668.8583964,0.00016661,2]
[402074829,1768508740220,-668.8583964,0.00016661,2]
[402074830,1768508740252,-668.8583964,0.00016661,2]
[402074831,1768508740366,-668.8583964,0.00016661,2]
[402074832,1768508740399,-668.8583964,0.00016661,2]
[402074833,1768508740430,-668.8583964,0.00016661,2]
[402074834,1768508740461,-668.8583964,0.00016661,2]
[402074835,1768508740492,-668.8583964,0.00016661,2]
[402074836,1768508740521,-668.8583964,0.00016661,2]
[402074837,1768508740552,-668.8583964,0.00016661,2]
[402074838,1768508740600,-668.8583964,0.00016661,2]
[402074839,1768508740633,-668.8583964,0.00016661,2]
[402074840,1768508740664,-668.8583964,0.00016661,2]
[402074841,1768508740696,-668.8583964,0.00016661,2]
[402074842,1768508740730,-668.85839643,0.00016661,2]
[402074843,1768508740763,-668.85839643,0.00016661,2]
[402074844,1768508747513,275.99651088,0.00016561,2]
[402074845,1768508752043,275.99651086,0.00016562,2]
[402074847,1768508758267,275.99651086,0.00016562,2]
[402074848,1768508761258,300.0,0.00016661,2]
[402074849,1768508762920,582.47,0.0001642,2]
[402074850,1768508765993,263.24971048,0.0001642,2]
[402074851,1768508766017,6572.53028952,0.0001642,2]
[402074852,1768508767119,-372.11586957,0.00016662,2]
[402074853,1768508768815,500.0,0.00016661,2]
[402074854,1768508769174,500.0,0.00016661,2]
[402074855,1768508769802,-279.07281986,0.00016662,2]
[402074856,1768508772385,-170.00404283,0.00016662,2]
[402074857,1768508778786,-164.51827442,0.00016662,2]
[402074858,1768508783998,-220.1226802,0.00016662,2]
[402074859,1768508786074,-182.5391889,0.00016662,2]
[402074860,1768508789388,-173.72034882,0.00016662,2]
[402074861,1768508791789,-228.0,0.00016662,2]
[402074862,1768508793448,-500.0,0.00016662,2]
[402074863,1768508796977,-158.40486289,0.00016662,2]
[402074864,1768508799066,-170.65569331,0.00016662,2]
[402074865,1768508801212,-222.23209753,0.00016662,2]
[402074866,1768508801245,2427.47971048,0.00016652,2]
[402074867,1768508801269,10000.01,0.00016652,2]
[402074868,1768508801291,10000.01,0.00016652,2]
[402074869,1768508801313,10000.01,0.00016652,2]
[402074870,1768508801339,10000.01,0.00016652,2]
[402074871,1768508801361,10000.01,0.00016652,2]
[402074872,1768508801384,10000.01,0.00016652,2]
[402074873,1768508801407,10000.01,0.00016652,2]
[402074874,1768508802904,1181.43047615,0.0003,120]
[402074875,1768508805370,-159.8,0.00016652,2]
[402074876,1768508807752,-173.15593603,0.00016652,2]
[402074877,1768508809976,-202.90743206,0.00016652,2]
[402074878,1768508814189,-268.51352137,0.00016652,2]
[402074879,1768508816694,-156.70272246,0.00016652,2]
[402074880,1768508820400,-205.11509146,0.00016652,2]
[402074882,1768508824083,-171.71190336,0.00016652,2]
[402074883,1768508829585,-275.0,0.00016652,2]
[402074884,1768508832331,-250.0,0.00016652,2]
[402074885,1768508836202,-432.28167555,0.00016652,2]
[402074886,1768508839543,-274.76701349,0.00016652,2]
[402074887,1768508845063,-180.67137245,0.00016652,2]
[402074888,1768508848949,-385.56468127,0.00016652,2]
[402074889,1768508850561,-318.67722561,0.00016652,2]
[402074890,1768508868400,-294.38879118,0.00016652,2]
[402074891,1768508870103,-193.87050116,0.00016652,2]
[402074892,1768508872147,-273.86999409,0.00016652,2]
[402074893,1768508876699,-360.02701619,0.00016652,2]
[402074894,1768508881739,-287.44961372,0.00016652,2]
[402074895,1768508884560,-158.76394628,0.00016652,2]
[402074896,1768508887145,10000.01,0.00016562,2]
[402074897,1768508887174,10000.01,0.00016562,2]
[402074898,1768508887204,10000.01,0.00016562,2]
[402074899,1768508887233,10000.01,0.00016562,2]
[402074900,1768508887263,10000.01,0.00016562,2]
[402074901,1768508887293,10000.01,0.00016562,2]
[402074902,1768508887322,10000.01,0.00016562,2]
[402074903,1768508887354,10000.01,0.00016562,2]
[402074904,1768508887385,10000.01,0.00016562,2]
[402074905,1768508887414,10000.01,0.00016562,2]
[402074906,1768508887983,-274.80143649,0.00016562,2]
[402074907,1768508896601,-4959.50415071,0.00016562,2]
[402074908,1768508896718,-10000.01,0.00016562,2]
[402074909,1768508896734,-10000.01,0.00016562,2]
[402074910,1768508897090,-10000.01,0.00016562,2]
[402074911,1768508897218,-10000.01,0.00016562,2]
[402074912,1768508904631,-10000.01,0.00016562,2]
[402074913,1768508904651,-10000.01,0.00016562,2]
[402074914,1768508904671,-10000.01,0.00016562,2]
[402074915,1768508904750,-10000.01,0.00016562,2]
[402074916,1768508904857,-10000.01,0.00016562,2]
[402074917,1768508904970,-10000.01,0.00016562,2]
[402074918,1768508905237,-10000.01,0.00016562,2]
[402074919,1768508905320,-10000.01,0.00016562,2]
[402074920,1768508905433,-10000.01,0.00016562,2]
[402074921,1768508905534,-10000.01,0.00016562,2]
[402074922,1768508905647,-10000.01,0.00016562,2]
[402074923,1768508905829,-10000.01,0.00016562,2]
[402074924,1768508905911,-10000.01,0.00016562,2]
[402074926,1768508912436,500.0,0.00030127,120]
[402074927,1768508912586,500.0,0.00030127,120]
[402074928,1768508914647,2145.0,0.00030127,120]
[402074929,1768508919949,848.875738,0.0002,120]
[402074930,1768508939316,1732.0,0.0003013,120]
[402074931,1768508939560,1423.0,0.0003013,120]
[402074932,1768508940130,160.0,0.0003013,120]
[402074933,1768508942048,376.0,0.0003013,120]
[402074934,1768508942846,494.0,0.0003013,120]
[402074935,1768508943664,307.0,0.0003013,120]
[402074936,1768508944448,284.0,0.0003013,120]
[402074937,1768508945236,444.0,0.0003013,120]
[402074938,1768508946026,472.0,0.0003013,120]
[402074939,1768508946309,-300.0,0.00016551,2]
[402074940,1768508946331,-456.187682,0.00016552,2]
[402074941,1768508946816,281.0,0.0003013,120]
[402074942,1768508947643,418.0,0.0003013,120]
[402074943,1768508948461,341.0,0.0003013,120]
[402074944,1768508949908,384.0,0.0003013,120]
[402074945,1768508950287,249.0,0.0003013,120]
[402074946,1768508950844,10000.01,0.00015881,2]
[402074947,1768508950869,4125.56,0.00015881,2]
[402074948,1768508951037,386.0,0.0003013,120]
[402074949,1768508951636,-24.9317127,0.00016552,2]
[402074950,1768508951659,-193.17305488,0.00016552,2]
[402074951,1768508951882,470.0,0.0003013,120]
[402074952,1768508952717,475.0,0.0003013,120]
[402074953,1768508953387,-396.53446097,0.00016552,2]
[402074954,1768508955965,-320.29133073,0.00016552,2]
[402074955,1768508958230,-345.41478923,0.00016552,2]
[402074956,1768508960905,-205.47583682,0.00016552,2]
[402074957,1768508963989,-166.46688855,0.00016552,2]
[402074958,1768508966802,-349.79502899,0.00016552,2]
[402074959,1768508968462,-167.55253785,0.00016552,2]
[402074960,1768508971368,-213.14254782,0.00016552,2]
[402074961,1768508973576,-324.65243316,0.00016552,2]
[402074962,1768508976841,-214.34851536,0.00016552,2]
[402074963,1768508979901,-183.21864461,0.00016552,2]
[402074964,1768508981997,-290.29070041,0.00016552,2]
[402074965,1768508986588,-240.73102327,0.00016552,2]
[402074966,1768508988914,-400.36306674,0.00016552,2]
[402074967,1768508991611,-555.61565147,0.00016552,2]
[402074968,1768508993473,-200.86120736,0.00016552,2]
[402074969,1768508996717,1157.0,0.0003013,120]
[402074970,1768508997236,-291.5904014,0.00016552,2]
[402074971,1768508998853,328.0,0.0003013,120]
[402074972,1768508999361,-271.38861775,0.00016552,2]
[402074973,1768508999664,152.0,0.0003013,120]
[402074974,1768509000557,328.0,0.0003013,120]
[402074975,1768509002086,-285.56508999,0.00016551,2]
[402074976,1768509002251,-914.43491001,0.00016551,2]
[402074977,1768509003735,150.0,0.00030137,120]
[402074978,1768509004066,-166.64583723,0.00016552,2]
[402074979,1768509014746,-333.53554376,0.00016552,2]
[402074980,1768509016998,-163.59538386,0.00016552,2]
[402074981,1768509018604,-318.68313666,0.00016552,2]
[402074982,1768509020668,-297.60139504,0.00016552,2]
[402074983,1768509022934,-156.81209436,0.00016552,2]
[402074984,1768509025012,-255.74220904,0.00016552,2]
[402074985,1768509026440,-284.67298197,0.00016552,2]
[402074986,1768509029168,-205.41968543,0.00016552,2]
[402074987,1768509031350,-607.19801074,0.00016552,2]
[402075002,1768509031672,-15138.19199402,0.00016552,2]
[402075005,1768509031685,-168.97,0.00016552,3]
[402075006,1768509031695,-300.0,0.00016552,2]
[402075007,1768509031707,-300.0,0.00016557,2]
[402075008,1768509031717,-300.0,0.00016557,2]
[402075009,1768509031727,-311.84394059,0.00016557,2]
[402075010,1768509031737,-550.0,0.0001656,2]
[402075011,1768509031747,-282.83652502,0.00016561,2]
[402075012,1768509031758,-500.0,0.00016561,2]
[402075013,1768509031768,-500.0,0.00016561,2]
[402075014,1768509031778,-500.0,0.00016561,2]
[402075015,1768509031789,-264.35004435,0.00016561,2]
[402075016,1768509031799,-500.0,0.00016561,2]
[402075017,1768509031809,-500.0,0.00016561,2]
[402075018,1768509031819,-500.0,0.00016561,2]
[402075019,1768509031829,-500.0,0.00016561,2]
[402075020,1768509031839,-500.0,0.00016561,2]
[402075021,1768509031848,-500.0,0.00016561,2]
[402075022,1768509031858,-500.0,0.00016561,2]
[402075023,1768509031868,-500.0,0.00016561,2]
[402075024,1768509031878,-500.0,0.00016561,2]
[402075025,1768509031887,-265.27745453,0.00016561,2]
[402075026,1768509031898,-500.0,0.00016561,2]
[402075027,1768509031907,-500.0,0.00016561,2]
[402075029,1768509031916,-18880.77702988,0.00016562,2]
[402075031,1768509031928,-277609.89988225,0.00016562,2]
[402075033,1768509031940,-46185.78017388,0.00016562,2]
[402075036,1768509031957,-165832.68876876,0.00016562,2]
[402075040,1768509031992,-773.9130993,0.00016562,2]
[402075043,1768509032011,-500.0,0.00016562,2]
[402075045,1768509032022,-928.84816254,0.00016562,2]
[402075048,1768509032042,-331.02,0.00016562,2]
[402075093,1768509034284,-250.0,0.00016562,2]
[402075094,1768509037110,-230.88616484,0.00016562,2]